[Event "ONJK 2024 ABC"]
[Site "Velp, Netherlands"]
[Date "2024.08.08"]
[Round "9.1"]
[White "Hesse, Lucas"]
[Black "Elferink, Leon"]
[Result "0-1"]
[TimeControl "90 minutes + 30 seconds"]
[WhiteElo "1708"]
[BlackElo "1900"]

1. e4 {[%clk 01:30:59]} e5 {[%clk 01:30:48]} {[%emt 00:00:12]} 2. Nf3 {[%clk
01:31:27]} {[%emt 00:00:03]} Nc6 {[%clk 01:31:12]} {[%emt 00:00:07]} 3. Bc4
{[%clk 01:31:53]} {[%emt 00:00:04]} Bc5 {[%clk 01:31:38]} {[%emt 00:00:04]} 4.
c3 {[%clk 01:32:19]} {[%emt 00:00:04]} Nf6 {[%clk 01:31:56]} {[%emt 00:00:12]}
5. d4 {[%clk 01:32:40]} {[%emt 00:00:09]} exd4 {[%clk 01:32:22]} {[%emt
00:00:04]} 6. cxd4 {[%clk 01:33:06]} {[%emt 00:00:04]} Bb4+ {[%clk 01:32:46]}
{[%emt 00:00:06]} 7. Bd2 {[%clk 01:32:59]} {[%emt 00:00:37]} Bxd2+ {[%clk
01:32:47]} {[%emt 00:00:28]} 8. Nbxd2 {[%clk 01:33:23]} {[%emt 00:00:06]} d5
{[%clk 01:33:08]} {[%emt 00:00:10]} 9. exd5 {[%clk 01:29:27]} {[%emt 00:04:26]}
Nxd5 {[%clk 01:33:19]} {[%emt 00:00:18]} 10. Bb5 {[%clk 01:29:41]} {[%emt
00:00:17]} Nde7 {[%clk 01:27:05]} {[%emt 00:06:43]} 11. O-O {[%clk 01:25:11]}
{[%emt 00:05:00]} O-O {[%clk 01:26:12]} {[%emt 00:01:24]} 12. Re1 {[%clk
01:23:06]} {[%emt 00:02:35]} a6 {[%clk 01:23:26]} {[%emt 00:03:15]} 13. Ba4
{[%clk 01:21:27]} {[%emt 00:02:10]} Bg4 {[%clk 01:20:25]} {[%emt 00:03:30]} 14.
Qc2 {[%clk 01:15:27]} {[%emt 00:06:31]} Rc8 {[%clk 01:13:31]} {[%emt 00:07:24]}
15. Bxc6 {[%clk 01:12:24]} {[%emt 00:03:33]} Nxc6 {[%clk 01:13:36]} {[%emt
00:00:25]} 16. Qe4 {[%clk 01:12:46]} {[%emt 00:00:07]} Be6 {[%clk 01:10:45]}
{[%emt 00:03:22]} 17. Rac1 {[%clk 01:09:12]} {[%emt 00:04:04]} Bd5 {[%clk
01:09:16]} {[%emt 00:01:58]} 18. Qd3 {[%clk 01:03:00]} {[%emt 00:06:43]} Nb4
{[%clk 01:05:29]} {[%emt 00:04:15]} 19. Qa3 {[%clk 01:01:19]} {[%emt 00:02:14]}
a5 {[%clk 00:58:37]} {[%emt 00:07:21]} 20. Nf1 {[%clk 00:53:51]} {[%emt
00:07:56]} Bxf3 {[%clk 00:54:25]} {[%emt 00:04:43]} 21. Qxf3 {[%clk 00:53:17]}
{[%emt 00:01:03]} Qxd4 {[%clk 00:54:29]} {[%emt 00:00:26]} 22. Qxb7 {[%clk
00:50:51]} {[%emt 00:02:56]} Nd3 {[%clk 00:53:34]} {[%emt 00:01:25]} 23. Red1
{[%clk 00:47:25]} {[%emt 00:03:56]} Qxf2+ {[%clk 00:53:35]} {[%emt 00:00:28]}
24. Kh1 {[%clk 00:47:42]} {[%emt 00:00:14]} Nxc1 {[%clk 00:53:36]} {[%emt
00:00:29]} 25. Rxc1 {[%clk 00:48:03]} {[%emt 00:00:09]} Rb8 {[%clk 00:53:32]}
{[%emt 00:00:33]} 26. Qxc7 {[%clk 00:47:20]} {[%emt 00:01:13]} Rxb2 {[%clk
00:53:42]} {[%emt 00:00:20]} 27. Qc6 {[%clk 00:47:17]} {[%emt 00:00:34]} Rxa2
{[%clk 00:53:35]} {[%emt 00:00:37]} 28. Ng3 {[%clk 00:46:42]} {[%emt 00:01:05]}
h6 {[%clk 00:53:30]} {[%emt 00:00:34]} 29. Rf1 {[%clk 00:46:26]} {[%emt
00:00:46]} Qc2 {[%clk 00:53:31]} {[%emt 00:00:27]} 30. Qf3 {[%clk 00:45:56]}
{[%emt 00:01:01]} Rb2 {[%clk 00:52:41]} {[%emt 00:01:21]} 31. Nf5 {[%clk
00:44:17]} {[%emt 00:02:09]} Qe2 {[%emt 00:06:29]} 0-1

[Event "ONJK 2024 ABC"]
[Site "Velp, Netherlands"]
[Date "2024.08.08"]
[Round "9.2"]
[White "Musabayeva, Diana"]
[Black "Faybish, Dana"]
[Result "1-0"]
[TimeControl "90 minutes + 30 seconds"]
[WhiteElo "1871"]
[BlackElo "1707"]

1. e4 {[%clk 01:30:59]} c5 {[%clk 01:30:48]} {[%emt 00:00:12]} 2. Nf3 {[%clk
01:31:26]} {[%emt 00:00:04]} d6 {[%clk 01:31:01]} {[%emt 00:00:17]} 3. d4
{[%clk 01:31:54]} {[%emt 00:00:02]} cxd4 {[%clk 01:31:25]} {[%emt 00:00:07]} 4.
Nxd4 {[%clk 01:32:21]} {[%emt 00:00:03]} Nf6 {[%clk 01:31:30]} {[%emt
00:00:24]} 5. Nc3 {[%clk 01:32:48]} {[%emt 00:00:02]} g6 {[%clk 01:31:27]}
{[%emt 00:00:34]} 6. f3 {[%clk 01:33:11]} {[%emt 00:00:07]} Bg7 {[%clk
01:31:26]} {[%emt 00:00:31]} 7. Be3 {[%clk 01:33:35]} {[%emt 00:00:06]} a6
{[%clk 01:31:11]} {[%emt 00:00:45]} 8. Qd2 {[%clk 01:33:47]} {[%emt 00:00:18]}
h5 {[%clk 01:31:02]} {[%emt 00:00:39]} 9. O-O-O {[%clk 01:32:37]} {[%emt
00:01:39]} b5 {[%clk 01:30:14]} {[%emt 00:01:19]} 10. Bd3 {[%clk 01:31:54]}
{[%emt 00:01:13]} Bb7 {[%clk 01:28:47]} {[%emt 00:01:57]} 11. a3 {[%clk
01:29:58]} {[%emt 00:02:27]} Nbd7 {[%clk 01:27:56]} {[%emt 00:01:21]} 12. h3
{[%clk 01:29:02]} {[%emt 00:01:27]} h4 {[%clk 01:23:59]} {[%emt 00:04:27]} 13.
f4 {[%clk 01:27:54]} {[%emt 00:01:38]} Nc5 {[%clk 01:08:34]} {[%emt 00:15:55]}
14. e5 {[%clk 01:25:21]} {[%emt 00:03:03]} dxe5 {[%clk 00:51:48]} {[%emt
00:17:15]} 15. fxe5 {[%clk 01:24:46]} {[%emt 00:01:05]} Nfe4 {[%clk 00:51:30]}
{[%emt 00:00:47]} 16. Qe1 {[%clk 01:22:22]} {[%emt 00:02:55]} Qc7 {[%clk
00:38:47]} {[%emt 00:13:13]} 17. e6 {[%clk 01:17:26]} {[%emt 00:05:26]} fxe6
{[%clk 00:30:03]} {[%emt 00:09:14]} 18. Nxe4 {[%clk 01:16:06]} {[%emt
00:01:50]} Nxd3+ {[%clk 00:29:23]} {[%emt 00:01:11]} 19. Rxd3 {[%clk 01:16:28]}
{[%emt 00:00:07]} Bxe4 {[%clk 00:29:35]} {[%emt 00:00:18]} 20. Nxe6 {[%clk
01:16:39]} {[%emt 00:00:18]} Qe5 {[%clk 00:29:24]} {[%emt 00:00:41]} 21. Nxg7+
{[%clk 01:16:48]} {[%emt 00:00:22]} Qxg7 {[%clk 00:29:32]} {[%emt 00:00:22]} 22.
Bd4 {[%clk 01:17:10]} {[%emt 00:00:07]} Qh6+ {[%clk 00:28:08]} {[%emt
00:01:54]} 23. Rd2 {[%clk 01:16:15]} {[%emt 00:01:26]} Bxg2 {[%clk 00:23:14]}
{[%emt 00:05:25]} 24. Bxh8 {[%clk 01:16:03]} {[%emt 00:00:41]} Bxh1 {[%clk
00:23:19]} {[%emt 00:00:25]} 25. Qxh1 {[%clk 01:16:19]} {[%emt 00:00:12]} Rd8
{[%clk 00:23:24]} {[%emt 00:00:27]} 26. Bc3 {[%clk 01:15:37]} {[%emt 00:01:12]}
Qe3 {[%clk 00:22:52]} {[%emt 00:01:01]} 27. Kd1 {[%clk 01:15:43]} {[%emt
00:00:24]} Rc8 {[%clk 00:22:05]} {[%emt 00:01:17]} 28. Rd3 {[%clk 01:15:28]}
{[%emt 00:00:45]} Qf2 {[%clk 00:21:15]} {[%emt 00:01:19]} 29. Qb7 {[%clk
01:13:53]} {[%emt 00:02:06]} Qg1+ {[%clk 00:14:30]} {[%emt 00:07:14]} 30. Be1
{[%clk 01:14:07]} {[%emt 00:00:17]} Qc5 {[%clk 00:14:20]} {[%emt 00:00:40]} 31.
Qd7+ {[%clk 01:11:48]} {[%emt 00:02:49]} Kf8 {[%clk 00:13:55]} {[%emt
00:00:56]} 32. Rc3 {[%clk 01:11:09]} {[%emt 00:01:08]} Qh5+ {[%clk 00:13:43]}
{[%emt 00:00:42]} 33. Kc1 {[%clk 01:11:27]} {[%emt 00:00:13]} Qg5+ {[%clk
00:12:49]} {[%emt 00:01:22]} 34. Qd2 {[%clk 01:11:15]} {[%emt 00:00:43]} Qf5
{[%clk 00:12:07]} {[%emt 00:01:12]} 35. Rxc8+ {[%clk 01:10:08]} {[%emt
00:01:37]} Qxc8 {[%clk 00:12:34]} {[%emt 00:00:03]} 36. Qh6+ {[%clk 01:09:59]}
{[%emt 00:00:39]} Kf7 {[%clk 00:12:26]} {[%emt 00:00:38]} 37. Qh7+ {[%clk
01:10:17]} {[%emt 00:00:11]} Ke8 {[%clk 00:11:28]} {[%emt 00:01:27]} 38. Qg8+
{[%clk 01:10:18]} {[%emt 00:00:30]} Kd7 {[%clk 00:11:56]} {[%emt 00:00:02]} 39.
Qxc8+ {[%clk 01:10:41]} {[%emt 00:00:07]} Kxc8 {[%clk 00:12:18]} {[%emt
00:00:09]} 40. Bxh4 {[%clk 01:11:05]} {[%emt 00:00:06]} Kd7 {[%clk 00:12:29]}
{[%emt 00:00:19]} 41. Kd2 {[%clk 01:11:27]} {[%emt 00:00:07]} e6 {[%clk
00:12:19]} {[%emt 00:00:40]} 42. Ke3 {[%clk 01:11:46]} {[%emt 00:00:11]} Kd6
{[%clk 00:12:02]} {[%emt 00:00:46]} 43. Ke4 {[%clk 01:11:55]} {[%emt 00:00:22]}
a5 {[%clk 00:11:52]} {[%emt 00:00:41]} 44. Bg3+ {[%clk 01:12:13]} {[%emt
00:00:12]} Ke7 {[%clk 00:12:17]} {[%emt 00:00:05]} 45. Be1 {[%clk 01:12:28]}
{[%emt 00:00:14]} a4 {[%clk 00:12:30]} {[%emt 00:00:17]} 46. Kd4 {[%clk
01:12:54]} {[%emt 00:00:04]} Kf6 {[%clk 00:12:24]} {[%emt 00:00:37]} 47. Ke4
{[%clk 01:12:49]} {[%emt 00:00:34]} Ke7 {[%clk 00:11:55]} {[%emt 00:00:58]} 48.
Ke5 {[%clk 01:13:14]} {[%emt 00:00:05]} Kf7 {[%clk 00:12:17]} {[%emt 00:00:09]}
49. Bb4 {[%clk 01:13:36]} {[%emt 00:00:08]} g5 {[%clk 00:12:34]} {[%emt
00:00:12]} 50. Bc5 {[%clk 01:14:00]} {[%emt 00:00:05]} Kg6 {[%clk 00:12:47]}
{[%emt 00:00:17]} 51. Kxe6 {[%clk 01:14:25]} {[%emt 00:00:06]} Kh5 {[%clk
00:13:00]} {[%emt 00:00:17]} 52. Bf2 {[%clk 01:14:39]} {[%emt 00:00:15]} 1-0

[Event "ONJK 2024 ABC"]
[Site "Velp, Netherlands"]
[Date "2024.08.08"]
[Round "9.3"]
[White "Ganeshram, Nirupa"]
[Black "Leenen, Boyd"]
[Result "0-1"]
[TimeControl "90 minutes + 30 seconds"]
[WhiteElo "1695"]
[BlackElo "1921"]

1. e4 {[%clk 01:30:58]} {[%emt 00:00:02]} e5 {[%clk 01:30:56]} {[%emt
00:00:04]} 2. Nf3 {[%clk 01:31:23]} {[%emt 00:00:06]} Nc6 {[%clk 01:31:22]}
{[%emt 00:00:03]} 3. Bc4 {[%clk 01:31:46]} {[%emt 00:00:07]} Bc5 {[%clk
01:31:48]} {[%emt 00:00:04]} 4. b4 {[%clk 01:31:59]} {[%emt 00:00:18]} Bxb4
{[%clk 01:32:11]} {[%emt 00:00:07]} 5. c3 {[%clk 01:32:18]} {[%emt 00:00:11]}
Ba5 {[%clk 01:32:32]} {[%emt 00:00:10]} 6. d4 {[%clk 01:31:49]} {[%emt
00:00:59]} exd4 {[%clk 01:32:54]} {[%emt 00:00:08]} 7. Qb3 {[%clk 01:31:26]}
{[%emt 00:00:52]} Qe7 {[%clk 01:31:21]} {[%emt 00:02:03]} 8. O-O {[%clk
01:29:43]} {[%emt 00:02:14]} d6 {[%clk 01:27:35]} {[%emt 00:04:16]} 9. Ba3
{[%clk 01:27:45]} {[%emt 00:02:26]} Bb6 {[%clk 01:23:18]} {[%emt 00:04:48]} 10.
Nbd2 {[%clk 01:25:27]} {[%emt 00:02:48]} Na5 {[%clk 01:17:40]} {[%emt
00:06:08]} 11. Qc2 {[%clk 01:22:41]} {[%emt 00:03:16]} Nxc4 {[%clk 01:16:55]}
{[%emt 00:01:15]} 12. Nxc4 {[%clk 01:22:48]} {[%emt 00:00:23]} Be6 {[%clk
01:16:40]} {[%emt 00:00:44]} 13. cxd4 {[%clk 01:19:07]} {[%emt 00:04:14]} Bxc4
{[%clk 01:07:07]} {[%emt 00:10:02]} 14. Qxc4 {[%clk 01:18:21]} {[%emt
00:01:15]} Qd7 {[%clk 01:07:16]} {[%emt 00:00:22]} 15. Qd5 {[%clk 01:08:27]}
{[%emt 00:10:24]} O-O-O {[%clk 01:04:04]} {[%emt 00:03:42]} 16. Ng5 {[%clk
00:56:19]} {[%emt 00:12:37]} Nh6 {[%clk 00:57:54]} {[%emt 00:06:39]} 17. Bb2
{[%clk 00:51:20]} {[%emt 00:05:31]} Rhe8 {[%clk 00:54:43]} {[%emt 00:03:40]} 18.
Rfe1 {[%clk 00:48:39]} {[%emt 00:03:11]} f6 {[%clk 00:53:36]} {[%emt 00:01:37]}
19. Nf3 {[%clk 00:45:49]} {[%emt 00:03:20]} Kb8 {[%clk 00:43:30]} {[%emt
00:10:37]} 20. a4 {[%clk 00:43:37]} {[%emt 00:02:42]} c6 {[%clk 00:42:35]}
{[%emt 00:01:25]} 21. Qb3 {[%clk 00:42:22]} {[%emt 00:01:44]} Ba5 {[%clk
00:37:08]} {[%emt 00:05:58]} 22. Bc3 {[%clk 00:36:44]} {[%emt 00:06:08]} Bxc3
{[%clk 00:36:52]} {[%emt 00:00:46]} 23. Qxc3 {[%clk 00:34:57]} {[%emt
00:02:17]} Nf7 {[%clk 00:36:52]} {[%emt 00:00:29]} 24. a5 {[%clk 00:33:55]}
{[%emt 00:01:33]} a6 {[%clk 00:33:35]} {[%emt 00:03:47]} 25. Rab1 {[%clk
00:31:37]} {[%emt 00:02:48]} d5 {[%clk 00:33:26]} {[%emt 00:00:39]} 26. e5
{[%clk 00:29:54]} {[%emt 00:02:13]} fxe5 {[%clk 00:33:21]} {[%emt 00:00:35]} 27.
dxe5 {[%clk 00:27:50]} {[%emt 00:02:34]} Ka8 {[%clk 00:30:29]} {[%emt
00:03:21]} 28. Qb3 {[%clk 00:24:27]} {[%emt 00:03:53]} Re6 {[%clk 00:29:12]}
{[%emt 00:01:46]} 29. Re2 {[%clk 00:19:58]} {[%emt 00:05:01]} Rde8 {[%clk
00:24:25]} {[%emt 00:05:17]} 30. Rbe1 {[%clk 00:16:21]} {[%emt 00:04:07]} Qc7
{[%clk 00:23:44]} {[%emt 00:01:09]} 31. Qc3 {[%clk 00:16:16]} {[%emt 00:00:36]}
R8e7 {[%clk 00:22:58]} {[%emt 00:01:17]} 32. h3 {[%clk 00:14:39]} {[%emt
00:02:07]} h6 {[%clk 00:20:29]} {[%emt 00:02:59]} 33. Qc5 {[%clk 00:10:10]}
{[%emt 00:04:59]} g5 {[%clk 00:18:23]} {[%emt 00:02:35]} 34. g4 {[%clk
00:09:43]} {[%emt 00:00:57]} Re8 {[%clk 00:17:00]} {[%emt 00:01:53]} 35. Kg2
{[%clk 00:09:02]} {[%emt 00:01:12]} Qe7 {[%clk 00:12:50]} {[%emt 00:04:41]} 36.
Qd4 {[%clk 00:08:27]} {[%emt 00:01:04]} Nh8 {[%clk 00:12:24]} {[%emt 00:00:56]}
37. Re3 {[%clk 00:06:53]} {[%emt 00:02:05]} Ng6 {[%clk 00:12:37]} {[%emt
00:00:16]} 38. Kg3 {[%clk 00:06:14]} {[%emt 00:01:09]} Qf8 {[%clk 00:07:59]}
{[%emt 00:05:09]} 39. Rb3 {[%clk 00:05:38]} {[%emt 00:01:05]} Qf4+ {[%clk
00:06:23]} {[%emt 00:02:06]} 40. Qxf4 {[%clk 00:05:35]} {[%emt 00:00:31]} gxf4+
{[%clk 00:06:44]} {[%emt 00:00:10]} 41. Kg2 {[%clk 00:05:31]} {[%emt 00:00:34]}
Ka7 {[%clk 00:05:14]} {[%emt 00:02:01]} 42. h4 {[%clk 00:04:55]} {[%emt
00:01:06]} c5 {[%clk 00:04:20]} {[%emt 00:01:24]} 43. h5 {[%clk 00:04:35]}
{[%emt 00:00:49]} Nxe5 {[%clk 00:03:57]} {[%emt 00:00:53]} 44. Nxe5 {[%clk
00:02:44]} {[%emt 00:02:21]} Rxe5 {[%clk 00:04:07]} {[%emt 00:00:21]} 45. Reb1
{[%clk 00:03:04]} {[%emt 00:00:10]} R8e7 {[%clk 00:04:08]} {[%emt 00:00:29]} 46.
Rb6 {[%clk 00:03:02]} {[%emt 00:00:31]} R5e6 {[%clk 00:03:15]} {[%emt
00:01:23]} 47. Kf3 {[%clk 00:02:49]} {[%emt 00:00:43]} d4 {[%clk 00:03:03]}
{[%emt 00:00:43]} 48. Kxf4 {[%clk 00:02:54]} {[%emt 00:00:25]} Rf7+ {[%clk
00:03:18]} {[%emt 00:00:15]} 49. Kg3 {[%clk 00:03:10]} {[%emt 00:00:14]} Rxb6
{[%clk 00:02:51]} {[%emt 00:00:58]} 50. Rxb6 {[%clk 00:03:23]} {[%emt
00:00:17]} Rd7 {[%clk 00:02:31]} {[%emt 00:00:49]} 51. Kf3 {[%clk 00:02:55]}
{[%emt 00:00:57]} d3 {[%clk 00:02:45]} {[%emt 00:00:17]} 52. Rb1 {[%clk
00:03:12]} {[%emt 00:00:14]} c4 {[%clk 00:02:50]} {[%emt 00:00:24]} 53. g5
{[%clk 00:02:38]} {[%emt 00:01:04]} c3 {[%clk 00:02:40]} {[%emt 00:00:40]} 54.
Ke3 {[%clk 00:02:31]} {[%emt 00:00:36]} c2 {[%clk 00:02:57]} {[%emt 00:00:14]}
55. Rc1 {[%clk 00:02:52]} {[%emt 00:00:09]} d2 {[%clk 00:03:18]} {[%emt
00:00:10]} 0-1

[Event "ONJK 2024 ABC"]
[Site "Velp, Netherlands"]
[Date "2024.08.08"]
[Round "9.4"]
[White "Blokzijl, Ruben"]
[Black "De Vries, Arjan"]
[Result "1/2-1/2"]
[TimeControl "90 minutes + 30 seconds"]
[WhiteElo "1743"]
[BlackElo "1843"]

1. e4 {[%clk 01:30:59]} c5 {[%clk 01:30:58]} {[%emt 00:00:03]} 2. Be2 {[%clk
01:31:23]} {[%emt 00:00:06]} Nc6 {[%clk 01:30:59]} {[%emt 00:00:29]} 3. d3
{[%clk 01:31:47]} {[%emt 00:00:05]} g6 {[%clk 01:30:55]} {[%emt 00:00:34]} 4.
f4 {[%clk 01:32:12]} {[%emt 00:00:06]} d6 {[%clk 01:30:35]} {[%emt 00:00:50]} 5.
Nf3 {[%clk 01:32:36]} {[%emt 00:00:06]} Bg7 {[%clk 01:30:35]} {[%emt 00:00:30]}
6. O-O {[%clk 01:32:59]} {[%emt 00:00:06]} Nf6 {[%clk 01:27:24]} {[%emt
00:03:41]} 7. Qe1 {[%clk 01:32:37]} {[%emt 00:00:52]} O-O {[%clk 01:23:23]}
{[%emt 00:04:31]} 8. Qh4 {[%clk 01:31:17]} {[%emt 00:01:49]} Bg4 {[%clk
01:19:51]} {[%emt 00:04:03]} 9. Nbd2 {[%clk 01:29:20]} {[%emt 00:02:26]} Bxf3
{[%clk 01:17:12]} {[%emt 00:03:10]} 10. Nxf3 {[%clk 01:28:58]} {[%emt
00:00:52]} Qb6 {[%clk 01:17:29]} {[%emt 00:00:14]} 11. Kh1 {[%clk 01:24:12]}
{[%emt 00:05:16]} c4 {[%clk 01:11:58]} {[%emt 00:06:00]} 12. f5 {[%clk
01:19:54]} {[%emt 00:04:48]} cxd3 {[%clk 01:07:55]} {[%emt 00:04:33]} 13. cxd3
{[%clk 01:18:37]} {[%emt 00:01:47]} Nd4 {[%clk 01:07:46]} {[%emt 00:00:40]} 14.
Nxd4 {[%clk 01:18:06]} {[%emt 00:01:00]} Qxd4 {[%clk 01:08:11]} {[%emt
00:00:05]} 15. Qf2 {[%clk 01:13:46]} {[%emt 00:04:50]} Qb4 {[%clk 01:03:32]}
{[%emt 00:05:10]} 16. a3 {[%clk 01:09:54]} {[%emt 00:04:22]} Qb3 {[%clk
01:03:04]} {[%emt 00:00:57]} 17. Rb1 {[%clk 01:07:04]} {[%emt 00:03:20]} Rac8
{[%clk 01:00:02]} {[%emt 00:03:33]} 18. Bd2 {[%clk 01:00:49]} {[%emt 00:06:45]}
b6 {[%clk 00:55:55]} {[%emt 00:04:38]} 19. Bc3 {[%clk 00:56:38]} {[%emt
00:04:39]} Rc7 {[%clk 00:53:21]} {[%emt 00:03:04]} 20. e5 {[%clk 00:51:55]}
{[%emt 00:05:12]} dxe5 {[%clk 00:52:45]} {[%emt 00:01:07]} 21. Bxe5 {[%clk
00:51:53]} {[%emt 00:00:32]} Ng4 {[%clk 00:51:48]} {[%emt 00:01:27]} 22. Bxg4
{[%clk 00:50:25]} {[%emt 00:01:58]} Bxe5 {[%clk 00:52:13]} {[%emt 00:00:06]} 23.
fxg6 {[%clk 00:50:24]} {[%emt 00:00:31]} hxg6 {[%clk 00:52:37]} {[%emt
00:00:06]} 24. Qe3 {[%clk 00:49:55]} {[%emt 00:00:59]} Bxb2 {[%clk 00:48:55]}
{[%emt 00:04:11]} 25. Bh5 {[%clk 00:38:01]} {[%emt 00:12:24]} Qxa3 {[%clk
00:45:54]} {[%emt 00:03:32]} 26. Bxg6 {[%clk 00:33:53]} {[%emt 00:04:38]} fxg6
{[%clk 00:37:29]} {[%emt 00:08:54]} 27. Qe6+ {[%clk 00:33:10]} {[%emt
00:01:12]} Kg7 {[%clk 00:37:20]} {[%emt 00:00:40]} 28. Rxf8 {[%clk 00:30:43]}
{[%emt 00:02:57]} Kxf8 {[%clk 00:37:22]} {[%emt 00:00:29]} 29. Qxg6 {[%clk
00:30:43]} {[%emt 00:00:29]} Rc1+ {[%clk 00:37:44]} {[%emt 00:00:08]} 30. Rxc1
{[%clk 00:31:08]} {[%emt 00:00:05]} Bxc1 {[%clk 00:38:12]} {[%emt 00:00:02]} 31.
Qf5+ {[%clk 00:31:24]} {[%emt 00:00:15]} Kg7 {[%clk 00:38:25]} {[%emt
00:00:17]} 32. Qe5+ {[%clk 00:31:28]} {[%emt 00:00:26]} Kg6 {[%clk 00:38:46]}
{[%emt 00:00:08]} 33. Qe6+ {[%clk 00:31:42]} {[%emt 00:00:16]} Kh5 {[%clk
00:37:33]} {[%emt 00:01:43]} 34. Qf5+ {[%clk 00:30:11]} {[%emt 00:02:00]} Bg5
{[%clk 00:37:29]} {[%emt 00:00:35]} 35. Qh7+ {[%clk 00:29:40]} {[%emt
00:01:01]} Kg4 {[%clk 00:35:46]} {[%emt 00:02:12]} 36. Qe4+ {[%clk 00:29:49]}
{[%emt 00:00:24]} Kh5 {[%clk 00:36:00]} {[%emt 00:00:14]} 1/2-1/2

[Event "ONJK 2024 ABC"]
[Site "Velp, Netherlands"]
[Date "2024.08.08"]
[Round "9.5"]
[White "Decraene, Lotus"]
[Black "Bernfeld, Ben"]
[Result "1-0"]
[TimeControl "90 minutes + 30 seconds"]
[WhiteElo "1799"]
[BlackElo "1438"]

1. e4 {[%clk 01:30:58]} {[%emt 00:00:02]} e5 {[%clk 01:30:58]} {[%emt
00:00:03]} 2. Nf3 {[%clk 01:31:22]} {[%emt 00:00:05]} Nc6 {[%clk 01:31:25]}
{[%emt 00:00:04]} 3. Bc4 {[%clk 01:31:47]} {[%emt 00:00:05]} Nf6 {[%clk
01:31:50]} {[%emt 00:00:05]} 4. d3 {[%clk 01:32:09]} {[%emt 00:00:08]} Bc5
{[%clk 01:32:16]} {[%emt 00:00:04]} 5. Nc3 {[%clk 01:32:33]} {[%emt 00:00:06]}
d6 {[%clk 01:32:36]} {[%emt 00:00:10]} 6. Bg5 {[%clk 01:32:50]} {[%emt
00:00:13]} h6 {[%clk 01:32:59]} {[%emt 00:00:07]} 7. Bxf6 {[%clk 01:33:04]}
{[%emt 00:00:15]} Qxf6 {[%clk 01:32:28]} {[%emt 00:01:01]} 8. Nd5 {[%clk
01:33:28]} {[%emt 00:00:06]} Qd8 {[%clk 01:32:51]} {[%emt 00:00:07]} 9. c3
{[%clk 01:33:19]} {[%emt 00:00:40]} Bg4 {[%clk 01:30:45]} {[%emt 00:02:35]} 10.
h3 {[%clk 01:29:12]} {[%emt 00:04:37]} Bh5 {[%clk 01:27:36]} {[%emt 00:03:40]}
11. b4 {[%clk 01:19:24]} {[%emt 00:10:18]} Bb6 {[%clk 01:26:39]} {[%emt
00:01:28]} 12. a4 {[%clk 01:19:21]} {[%emt 00:00:33]} a6 {[%clk 01:18:22]}
{[%emt 00:08:47]} 13. Qd2 {[%clk 01:12:32]} {[%emt 00:07:19]} Ne7 {[%clk
01:02:03]} {[%emt 00:16:48]} 14. Nxb6 {[%clk 01:07:04]} {[%emt 00:05:58]} cxb6
{[%clk 01:02:03]} {[%emt 00:00:31]} 15. Qe3 {[%clk 01:06:44]} {[%emt 00:00:49]}
Rc8 {[%clk 00:57:19]} {[%emt 00:05:14]} 16. O-O {[%clk 01:05:44]} {[%emt
00:01:30]} Bxf3 {[%clk 00:53:48]} {[%emt 00:04:02]} 17. Qxf3 {[%clk 01:05:35]}
{[%emt 00:00:38]} O-O {[%clk 00:53:18]} {[%emt 00:01:01]} 18. Rac1 {[%clk
01:05:34]} {[%emt 00:00:30]} Qd7 {[%clk 00:50:02]} {[%emt 00:03:46]} 19. Bb3
{[%clk 01:03:10]} {[%emt 00:02:53]} Ng6 {[%clk 00:45:16]} {[%emt 00:05:17]} 20.
Rfd1 {[%clk 01:00:42]} {[%emt 00:02:58]} Nf4 {[%clk 00:41:53]} {[%emt
00:03:53]} 21. d4 {[%clk 00:57:30]} {[%emt 00:03:42]} Qe7 {[%clk 00:40:28]}
{[%emt 00:01:54]} 22. Kh2 {[%clk 00:55:32]} {[%emt 00:02:28]} Kh8 {[%clk
00:33:06]} {[%emt 00:07:53]} 23. Rd2 {[%clk 00:53:48]} {[%emt 00:02:14]} f5
{[%clk 00:29:35]} {[%emt 00:04:02]} 24. exf5 {[%clk 00:48:39]} {[%emt
00:05:38]} Qg5 {[%clk 00:26:10]} {[%emt 00:03:55]} 25. Rcc2 {[%clk 00:27:12]}
{[%emt 00:21:58]} Rxf5 {[%clk 00:23:12]} {[%emt 00:03:26]} 26. g3 {[%clk
00:22:14]} {[%emt 00:05:30]} Ng6 {[%clk 00:17:59]} {[%emt 00:05:42]} 27. Qg2
{[%clk 00:20:29]} {[%emt 00:02:14]} Rxc3 {[%clk 00:16:59]} {[%emt 00:01:32]} 28.
h4 {[%clk 00:15:44]} {[%emt 00:05:15]} Rxc2 {[%clk 00:15:23]} {[%emt 00:02:06]}
29. Rxc2 {[%clk 00:15:25]} {[%emt 00:00:48]} Qf6 {[%clk 00:15:17]} {[%emt
00:00:36]} 30. dxe5 {[%clk 00:14:10]} {[%emt 00:01:45]} Nxe5 {[%clk 00:14:34]}
{[%emt 00:01:13]} 31. Rc8+ {[%clk 00:13:36]} {[%emt 00:01:04]} Kh7 {[%clk
00:14:44]} {[%emt 00:00:21]} 32. Bc2 {[%clk 00:13:44]} {[%emt 00:00:21]} Kg6
{[%clk 00:13:37]} {[%emt 00:01:37]} 33. h5+ {[%clk 00:13:15]} {[%emt 00:00:59]}
Kxh5 {[%clk 00:12:41]} {[%emt 00:01:26]} 34. Qh3+ {[%clk 00:12:59]} {[%emt
00:00:46]} Kg6 {[%clk 00:12:34]} {[%emt 00:00:37]} 35. g4 {[%clk 00:11:36]}
{[%emt 00:01:53]} Kg5 {[%clk 00:10:35]} {[%emt 00:02:29]} 36. Qh5+ {[%clk
00:11:21]} {[%emt 00:00:45]} Kf4 {[%clk 00:10:45]} {[%emt 00:00:20]} 37. Qxf5+
{[%clk 00:11:32]} {[%emt 00:00:19]} Qxf5 {[%clk 00:10:48]} {[%emt 00:00:27]} 38.
Bxf5 {[%clk 00:11:49]} {[%emt 00:00:12]} g6 {[%clk 00:10:47]} {[%emt 00:00:32]}
39. Be6 {[%emt 00:00:59]} 1-0